bitfinex/quotes_SOLUSD_20250310
["timestamp","ask_amount","ask_price","bid_price","bid_amount"]
[1741603681190,57.23244236,127.41,127.4,0.063]
[1741603681890,38.44063193,127.44,127.4,0.063]
[1741603682085,18.79181043,127.44,127.4,0.063]
[1741603682287,0.0001,127.45,127.4,38.50363193]
[1741603682497,38.44063193,127.44,127.4,0.063]
[1741603682688,65.07874236,127.45,127.4,0.063]
[1741603683302,18.79181043,127.41,127.4,0.063]
[1741603683509,57.37460393,127.41,127.4,0.063]
[1741603685712,65.22320393,127.41,127.4,0.063]
[1741603687120,57.14063193,127.42,127.4,0.063]
[1741603687429,81.1001,127.45,127.4,0.063]
[1741603687633,0.0001,127.45,127.41,38.44063193]
[1741603687821,0.0001,127.45,127.42,38.44063193]
[1741603688230,0.0001,127.45,127.41,38.44063193]
[1741603688431,18.79181043,127.44,127.4,0.063]
[1741603688628,57.23244236,127.44,127.4,0.063]
[1741603689353,0.0001,127.45,127.41,38.44063193]
[1741603689534,0.0001,127.45,127.44,38.44063193]
[1741603689734,0.0001,127.45,127.43,38.44063193]
[1741603690039,0.0001,127.45,127.44,38.44063193]
[1741603691215,0.0001,127.45,127.44,76.88126386]
[1741603691417,0.0001,127.45,127.44,84.72806386]
[1741603692138,0.0001,127.45,127.44,46.28743193]
[1741603692520,0.0001,127.45,127.44,84.72806386]
[1741603692705,0.0001,127.45,127.44,46.28743193]
[1741603693621,0.0001,127.45,127.44,84.72806386]
[1741603693839,0.0001,127.45,127.44,46.28743193]
[1741603694917,0.0001,127.45,127.44,38.44063193]
[1741603695122,0.0001,127.45,127.43,46.28773193]
[1741603695326,0.0001,127.45,127.43,38.44063193]
[1741603695637,0.0001,127.45,127.42,46.28833193]
[1741603695936,0.0001,127.45,127.44,38.44063193]
[1741603696244,0.0001,127.45,127.41,38.44063193]
[1741603696540,0.0001,127.45,127.4,0.063]
[1741603696541,57.23244236,127.42,127.4,0.063]
[1741603696712,38.44063193,127.41,127.4,0.063]
[1741603697448,57.23244236,127.42,127.4,0.063]
[1741603697612,65.08044236,127.42,127.4,0.063]
[1741603697809,57.23244236,127.41,127.4,0.063]
[1741603698019,18.79181043,127.41,127.4,0.063]
[1741603698254,57.23244236,127.41,127.4,0.063]
[1741603698417,57.37460393,127.41,127.4,0.063]
[1741603699042,20.28432314,127.39,127.38,0.063]
[1741603699223,114.51523586,127.39,127.38,0.063]
[1741603699730,122.36513586,127.39,127.38,0.063]
[1741603699937,83.92450393,127.39,127.38,0.063]
[1741603700113,76.07460393,127.39,127.38,0.063]
[1741603700317,83.92450393,127.39,127.38,0.063]
[1741603701141,122.36513586,127.39,127.38,0.063]
[1741603701455,103.66513586,127.39,127.38,0.063]
[1741603701928,65.22450393,127.39,127.38,0.063]
[1741603702853,18.933972,127.39,127.38,0.063]
[1741603703037,18.79181043,127.39,127.38,0.063]
[1741603703724,18.79181043,127.41,127.38,0.063]
[1741603704390,38.44063193,127.4,127.38,0.063]
[1741603704534,0.14216157,127.41,127.38,0.063]
[1741603704853,18.64964886,127.42,127.38,0.063]
[1741603705025,0.14216157,127.41,127.38,0.063]
[1741603705225,38.5827935,127.41,127.38,0.063]
[1741603705451,0.14216157,127.41,127.38,0.063]
[1741603707049,0.14216157,127.42,127.38,38.50363193]
[1741603707264,18.79181043,127.42,127.38,38.50363193]
[1741603707447,18.79181043,127.42,127.38,0.063]
[1741603707928,18.79181043,127.42,127.38,46.35413193]
[1741603708464,18.79181043,127.42,127.38,0.063]
[1741603708465,65.08044236,127.42,127.38,0.063]
[1741603708765,18.79181043,127.42,127.38,0.063]
[1741603708931,18.64964886,127.42,127.38,38.50363193]
[1741603710068,18.64964886,127.42,127.38,46.35353193]
[1741603710243,18.64964886,127.42,127.38,0.063]
[1741603710567,18.64964886,127.42,127.38,7.9134]
[1741603710867,64.93828079,127.42,127.38,0.063]
[1741603711836,0.14216157,127.41,127.38,0.063]
[1741603712038,0.14216157,127.41,127.38,38.50363193]
[1741603712461,0.14216157,127.41,127.38,0.063]
[1741603714865,38.44063193,127.44,127.39,38.44063193]
[1741603715166,18.64964886,127.44,127.4,38.44063193]
[1741603715470,18.64964886,127.44,127.39,38.44063193]
[1741603716082,57.09028079,127.44,127.39,38.44063193]
[1741603716244,18.64964886,127.44,127.39,38.44063193]
[1741603716440,0.14216157,127.43,127.39,38.44063193]
[1741603716642,0.14216157,127.43,127.38,38.50363193]
[1741603716944,0.14216157,127.43,127.39,7.8499]
[1741603717155,18.64964886,127.44,127.4,38.44063193]
[1741603717536,0.0001,127.45,127.41,1.6629]
[1741603717741,0.0001,127.45,127.43,38.44063193]
[1741603718453,0.0001,127.45,127.43,24.0778553]
[1741603719068,0.0001,127.45,127.43,31.9249553]
[1741603719472,0.0001,127.45,127.42,24.0778553]
[1741603720362,0.0001,127.45,127.42,38.53071603]
[1741603720870,0.0001,127.45,127.41,48.04191603]
[1741603721167,0.0001,127.45,127.41,40.19361603]
[1741603721372,0.0001,127.45,127.41,48.04201603]
[1741603721579,0.0001,127.45,127.43,38.53071603]
[1741603721775,0.0001,127.45,127.44,38.53071603]
[1741603722076,0.0001,127.45,127.44,77.06143206]
[1741603722242,0.0001,127.45,127.44,83.23453206]
[1741603723052,0.063,127.51,127.47,20.0]
[1741603723263,0.063,127.51,127.5,38.53071603]
[1741603724949,0.063,127.51,127.48,40.10601603]
[1741603725653,0.063,127.51,127.49,38.53071603]
[1741603725856,0.063,127.51,127.47,38.53071603]
[1741603726061,0.063,127.51,127.48,38.53071603]
[1741603726362,0.063,127.51,127.47,38.53071603]
[1741603726566,38.59371603,127.51,127.46,38.53071603]
[1741603727562,18.85481043,127.51,127.47,38.53071603]
[1741603727768,26.69751043,127.51,127.47,38.53071603]
[1741603727953,26.55534886,127.51,127.47,38.53071603]
[1741603728155,0.063,127.51,127.49,38.53071603]
[1741603728465,0.063,127.51,127.5,38.53071603]
[1741603729571,0.063,127.51,127.5,46.37381603]
[1741603731253,0.063,127.51,127.5,84.90453206]
[1741603732069,0.0001,127.51,127.5,92.85129363]
[1741603734751,0.0001,127.53,127.52,38.933972]
[1741603735068,0.0001,127.53,127.52,77.46468803]
[1741603735256,0.0001,127.53,127.52,58.6728776]
[1741603735463,0.0001,127.53,127.52,38.53071603]
[1741603735651,0.0001,127.53,127.52,46.37261603]
[1741603736649,0.0001,127.53,127.52,38.53071603]
[1741603737453,0.0001,127.53,127.52,46.37261603]
[1741603738047,0.0001,127.53,127.52,65.30658803]
[1741603738573,0.0001,127.53,127.52,377.30658803]
[1741603739161,0.0001,127.53,127.52,46.37261603]
[1741603743257,0.0001,127.53,127.5,1.5354]
[1741603743468,0.0001,127.53,127.51,46.37291603]
[1741603743654,0.0001,127.53,127.5,7.8428]
[1741603743853,0.0001,127.53,127.49,46.37431603]
[1741603744177,38.53081603,127.53,127.48,46.37481603]
[1741603744399,0.0001,127.53,127.49,38.53071603]
[1741603745286,0.0001,127.53,127.48,46.37481603]
[1741603745882,0.0001,127.53,127.49,38.53071603]
[1741603746194,0.0001,127.53,127.49,46.37421603]
[1741603746371,0.0001,127.53,127.52,0.063]
[1741603746570,0.0001,127.53,127.52,38.59371603]
[1741603747670,0.0001,127.53,127.52,0.063]
[1741603748460,38.53081603,127.53,127.52,0.063]
[1741603748966,57.46478803,127.53,127.52,0.063]
[1741603749291,144.69268803,127.53,127.52,0.063]
[1741603750091,152.53388803,127.53,127.52,0.063]
[1741603750760,156.36941578,127.53,127.52,0.063]
[1741603751181,18.64964886,127.48,127.42,38.53071603]
[1741603751364,57.18036489,127.48,127.42,46.37841603]
[1741603751566,57.18036489,127.46,127.4,1.6649]
[1741603751764,38.53071603,127.46,127.4,48.04461603]
[1741603752068,18.64964886,127.46,127.42,7.848]
[1741603752265,18.64964886,127.46,127.42,46.37871603]
[1741603752589,18.64964886,127.46,127.42,7.848]
[1741603752959,18.64964886,127.46,127.41,38.53071603]
[1741603752960,18.64964886,127.46,127.41,46.37911603]
[1741603753682,38.53071603,127.44,127.38,46.44401603]
[1741603753866,38.53071603,127.43,127.38,46.44401603]
[1741603754057,0.14216157,127.45,127.4,7.849]
[1741603754263,105.99444886,127.46,127.41,38.53071603]
[1741603754673,105.99444886,127.46,127.42,38.53071603]
[1741603755083,105.99444886,127.46,127.41,38.53071603]
[1741603756174,105.99444886,127.46,127.42,7.848]
[1741603757470,113.84004886,127.46,127.41,46.37901603]
[1741603757671,0.28432314,127.45,127.38,0.063]
[1741603757861,38.6728776,127.42,127.38,0.063]
[1741603758165,0.14216157,127.4,127.38,0.063]
[1741603758380,57.32252646,127.39,127.38,0.063]
[1741603758687,145.17318803,127.39,127.38,0.063]
[1741603760272,106.50031043,127.39,127.38,0.063]
[1741603760473,81.1,127.39,127.38,0.063]
[1741603760680,138.56468803,127.39,127.38,0.063]
[1741603761579,146.41458803,127.39,127.38,0.063]
[1741603761981,138.56468803,127.39,127.38,0.063]
[1741603763194,81.1,127.39,127.38,0.063]
[1741603763887,81.1,127.42,127.38,38.59371603]
[1741603764065,119.63071603,127.45,127.4,38.53071603]
[1741603764428,81.1,127.45,127.41,46.37931603]
[1741603764583,81.1,127.45,127.42,38.53071603]
[1741603765167,81.1,127.45,127.41,46.37931603]
[1741603765783,81.1,127.45,127.43,38.53071603]
[1741603765986,18.64964886,127.47,127.43,38.53071603]
[1741603766296,81.1,127.48,127.45,46.37691603]
[1741603766495,18.79181043,127.49,127.45,46.37691603]
[1741603767502,18.79181043,127.49,127.45,38.53071603]
[1741603767678,57.32252646,127.49,127.43,38.53071603]
[1741603767873,38.53071603,127.48,127.43,38.53071603]
[1741603768582,57.32252646,127.47,127.42,38.53071603]
[1741603768781,138.42252646,127.47,127.42,38.53071603]
[1741603768975,38.53071603,127.46,127.41,38.53071603]
[1741603769700,38.6728776,127.45,127.4,38.53071603]
[1741603769915,0.14216157,127.43,127.39,38.53071603]
[1741603770076,0.14216157,127.43,127.38,46.44391603]
[1741603770281,0.14216157,127.43,127.39,38.53071603]
[1741603770576,18.79181043,127.46,127.42,38.59371603]
[1741603771012,18.79181043,127.46,127.42,0.063]
[1741603771212,18.79181043,127.44,127.42,0.063]
[1741603771700,18.79181043,127.45,127.42,0.063]
[1741603771881,38.53071603,127.46,127.42,0.063]
[1741603772081,18.79181043,127.46,127.42,0.063]
[1741603772297,18.79181043,127.44,127.42,0.063]
[1741603773298,18.933972,127.45,127.42,0.063]
[1741603774617,0.03,127.48,127.44,38.53071603]
[1741603774790,7.8746,127.48,127.44,38.53071603]
[1741603776422,0.03,127.48,127.45,38.53071603]
[1741603776806,0.03,127.48,127.47,38.53071603]
[1741603778230,0.03,127.48,127.46,38.53071603]
[1741603778600,0.03,127.48,127.47,38.53071603]
[1741603779217,0.03,127.48,127.45,7.8459]
[1741603779218,0.03,127.48,127.46,38.53071603]
[1741603779606,0.03,127.48,127.47,38.53071603]
[1741603780325,0.03,127.48,127.47,46.37561603]
[1741603781632,0.03,127.48,127.47,48.00451603]
[1741603782208,0.0001,127.53,127.47,67.61691603]
[1741603782407,0.0001,127.53,127.51,38.53071603]
[1741603786105,0.0001,127.53,127.52,38.53071603]
[1741603787027,0.0001,127.53,127.51,38.53071603]
[1741603787327,0.0001,127.53,127.52,38.53071603]
[1741603788137,0.0001,127.53,127.51,38.53071603]
[1741603788827,0.0001,127.53,127.5,38.53071603]
[1741603789016,0.0001,127.53,127.52,38.53071603]
[1741603790240,0.0001,127.53,127.51,38.53071603]
[1741603790418,0.0001,127.53,127.5,38.53071603]
[1741603790618,0.0001,127.53,127.51,38.53071603]
[1741603792111,0.0001,127.53,127.5,38.53071603]
[1741603792312,0.0001,127.53,127.49,38.53071603]
[1741603792549,38.53081603,127.53,127.48,38.53071603]
[1741603792730,119.63081603,127.53,127.48,38.53071603]
[1741603793130,81.1001,127.53,127.48,38.53071603]
[1741603794146,7.8419,127.52,127.48,46.37491603]
[1741603794313,127.47231603,127.53,127.48,46.37491603]
[1741603794516,88.9416,127.53,127.48,46.37491603]
[1741603795235,127.47231603,127.53,127.48,38.53071603]
[1741603795419,127.47231603,127.53,127.48,38.59371603]
[1741603795815,88.9416,127.53,127.48,46.43801603]
[1741603796021,81.1001,127.53,127.5,38.53071603]
[1741603797439,81.1001,127.53,127.5,46.37341603]
[1741603798628,81.1001,127.53,127.51,38.53071603]
[1741603798826,81.1001,127.53,127.5,46.37341603]
[1741603798827,0.0001,127.53,127.5,46.37341603]
[1741603799235,7.8416,127.53,127.48,46.43771603]
[1741603799447,127.47231603,127.53,127.48,38.59371603]
[1741603800135,119.63081603,127.53,127.48,46.43791603]
[1741603800445,127.47221603,127.53,127.48,38.59371603]
[1741603800824,81.1001,127.53,127.49,38.53071603]
[1741603801124,81.1001,127.53,127.5,38.53071603]
[1741603801635,81.1001,127.53,127.51,38.53071603]
[1741603801846,7.8415,127.53,127.5,38.53071603]
[1741603802153,7.8415,127.53,127.48,0.063]
[1741603802154,46.37221603,127.53,127.48,0.063]
[1741603802450,81.1001,127.53,127.5,38.53071603]
[1741603802647,88.9415,127.53,127.48,7.9071]
[1741603802852,127.47221603,127.53,127.48,46.43781603]
[1741603803035,88.9415,127.53,127.48,46.43781603]
[1741603803336,88.9415,127.53,127.49,38.53071603]
[1741603803655,127.47221603,127.53,127.48,0.063]
[1741603803847,18.933972,127.52,127.48,38.59371603]
[1741603804155,18.933972,127.52,127.48,0.063]
[1741603804361,81.1001,127.53,127.48,38.59371603]
[1741603804932,88.9414,127.53,127.48,38.59371603]
[1741603805745,57.46468803,127.51,127.48,0.063]
[1741603805941,119.63071603,127.5,127.48,0.063]
[1741603806141,38.53071603,127.49,127.48,0.063]
[1741603806353,57.46468803,127.49,127.48,0.063]
[1741603806846,138.56468803,127.49,127.48,0.063]
[1741603807630,146.40838803,127.49,127.48,0.063]
[1741603808447,20.14216157,127.45,127.42,0.063]
[1741603808650,38.53071603,127.44,127.42,0.063]
[1741603808830,38.53071603,127.43,127.42,0.063]
[1741603809030,57.46468803,127.43,127.42,0.063]
[1741603809633,0.28432314,127.39,127.38,0.063]
[1741603809954,18.64964886,127.39,127.38,0.063]
[1741603811238,18.64964886,127.4,127.38,0.063]
[1741603812332,38.53071603,127.39,127.38,0.063]
[1741603812541,57.18036489,127.39,127.38,0.063]
[1741603813264,18.64964886,127.39,127.38,0.063]
[1741603813861,38.53071603,127.4,127.38,0.063]
[1741603814064,57.18036489,127.41,127.38,0.063]
[1741603814564,38.53071603,127.42,127.38,0.063]
[1741603814749,81.1,127.43,127.39,38.53071603]
[1741603815157,127.47811603,127.43,127.38,46.44371603]
[1741603815454,88.9474,127.43,127.38,0.063]
[1741603815764,127.47811603,127.43,127.38,46.44401603]
[1741603815941,127.47811603,127.43,127.38,7.9133]
[1741603816464,127.47811603,127.43,127.38,38.59371603]
[1741603816657,127.47811603,127.43,127.38,0.063]
[1741603817268,57.18036489,127.41,127.38,0.063]
[1741603818537,18.64964886,127.41,127.38,38.59371603]
[1741603818765,18.64964886,127.41,127.38,0.063]
[1741603819266,18.64964886,127.41,127.38,38.59371603]
[1741603819877,81.1,127.45,127.38,1.6531]
[1741603820164,0.28432314,127.48,127.44,38.53071603]
[1741603820473,88.9439,127.49,127.45,38.53071603]
[1741603820683,81.1,127.49,127.45,38.53071603]
[1741603820977,81.1,127.51,127.46,38.53071603]
[1741603821147,81.1,127.51,127.47,38.53071603]
[1741603821547,0.0001,127.53,127.49,38.53071603]
[1741603821854,7.8414,127.53,127.48,38.53071603]
[1741603822251,14.25956302,127.53,127.48,38.53071603]
[1741603822574,52.79027905,127.53,127.48,38.53071603]
[1741603822753,52.79027905,127.53,127.47,38.53071603]
[1741603823160,7.8414,127.53,127.48,38.53071603]
[1741603823346,46.37211603,127.53,127.48,38.53071603]
[1741603824976,38.53071603,127.51,127.46,38.53071603]
[1741603825181,38.53071603,127.49,127.42,1.5779]
[1741603825481,81.1,127.5,127.46,38.53071603]
[1741603825653,81.1,127.5,127.47,38.53071603]
[1741603825982,119.63071603,127.5,127.42,9.4259]
[1741603826277,7.8437,127.49,127.45,38.53071603]
[1741603826644,38.53071603,127.47,127.4,7.849]
[1741603826849,38.53071603,127.45,127.39,1.5829]
[1741603827048,38.53071603,127.44,127.38,46.44401603]
[1741603827273,81.1,127.45,127.41,38.53071603]
[1741603827449,138.28036489,127.47,127.41,38.53071603]
[1741603827645,38.53071603,127.46,127.41,38.53071603]
[1741603827950,38.53071603,127.42,127.38,0.063]
[1741603828156,46.37931603,127.41,127.38,0.063]
[1741603828674,38.53071603,127.41,127.38,0.063]
[1741603828859,81.1,127.42,127.38,38.59371603]
[1741603829263,38.53071603,127.44,127.38,38.59371603]
[1741603829499,81.1,127.45,127.41,38.53071603]
[1741603829646,81.1,127.45,127.38,38.59371603]
[1741603829647,81.1,127.45,127.43,38.53071603]
[1741603829852,18.64964886,127.46,127.43,38.53071603]
[1741603830161,18.64964886,127.46,127.39,27.6202]
[1741603830371,38.53071603,127.5,127.45,38.53071603]
[1741603830569,0.28432314,127.51,127.47,38.53071603]
[1741603830777,18.933972,127.51,127.47,38.53071603]
[1741603831083,0.0001,127.53,127.49,38.53071603]
[1741603831249,0.0001,127.53,127.5,38.53071603]
[1741603832081,0.0001,127.53,127.49,38.53071603]
[1741603832655,0.0001,127.53,127.5,38.53071603]
[1741603832878,18.64974886,127.53,127.48,38.53071603]
[1741603833050,57.18046489,127.53,127.48,38.53071603]
[1741603833250,18.64974886,127.53,127.49,38.53071603]
[1741603833659,0.0001,127.53,127.5,38.53071603]
[1741603834669,0.0001,127.53,127.5,46.37321603]
[1741603834871,0.0001,127.53,127.49,38.53071603]
[1741603835082,0.0001,127.53,127.48,38.53071603]
[1741603835282,0.28442314,127.53,127.48,38.53071603]
[1741603835579,0.0001,127.53,127.49,38.53071603]
[1741603835789,18.64974886,127.53,127.49,38.53071603]
[1741603835997,18.64974886,127.53,127.48,38.53071603]
[1741603836174,57.18046489,127.53,127.48,38.53071603]
[1741603836493,18.64974886,127.53,127.49,38.53071603]
[1741603836698,18.64974886,127.53,127.49,46.37381603]
[1741603837093,99.74974886,127.53,127.49,46.37381603]
[1741603837292,0.0001,127.53,127.5,38.53071603]
[1741603838699,0.0001,127.53,127.49,46.37381603]
[1741603838895,0.0001,127.53,127.5,38.53071603]
[1741603839393,0.0001,127.53,127.51,38.53071603]
[1741603840195,0.0001,127.53,127.5,38.53071603]
[1741603840384,0.0001,127.53,127.51,38.53071603]
[1741603840576,0.0001,127.53,127.5,38.53071603]
[1741603841092,0.0001,127.53,127.5,46.37331603]
[1741603841296,0.0001,127.53,127.52,38.53071603]
[1741603842093,0.0001,127.53,127.51,38.53071603]
[1741603842894,0.0001,127.53,127.52,38.53071603]
[1741603844997,0.0001,127.53,127.5,46.37381603]
[1741603845504,0.0001,127.53,127.51,38.53071603]
[1741603845802,0.0001,127.53,127.5,46.37381603]
[1741603846180,0.0001,127.53,127.51,38.53071603]
[1741603846692,0.0001,127.53,127.48,19.6106]
[1741603846898,0.0001,127.53,127.49,38.53071603]
[1741603847206,0.0001,127.53,127.5,38.53071603]
[1741603847402,0.0001,127.53,127.51,38.53071603]
[1741603847776,0.0001,127.53,127.52,38.53071603]
[1741603848679,0.0001,127.53,127.52,46.37261603]
[1741603850704,0.0001,127.53,127.52,48.29273917]
[1741603851376,0.0001,127.53,127.52,54.82213917]
[1741603851779,0.0001,127.56,127.55,20.0]
[1741603852001,0.0001,127.56,127.55,115.99540406]
[1741603852313,0.03,127.61,127.59,20.0]
[1741603852608,0.03,127.61,127.6,38.53071603]
[1741603852795,0.03,127.61,127.59,38.53071603]
[1741603852981,0.03,127.61,127.58,38.53071603]
[1741603853182,0.03,127.61,127.59,38.53071603]
[1741603853706,0.03,127.61,127.57,38.53071603]
[1741603854079,18.67964886,127.61,127.57,38.53071603]
[1741603854806,0.03,127.61,127.57,38.53071603]
[1741603855184,38.53071603,127.59,127.54,38.53071603]
[1741603856206,38.53071603,127.57,127.52,38.53071603]
[1741603856395,38.53071603,127.57,127.51,38.53071603]
[1741603857080,46.36981603,127.57,127.52,38.53071603]
[1741603857703,46.36981603,127.57,127.5,7.8431]
[1741603857704,57.18036489,127.56,127.51,38.53071603]
[1741603857905,57.18036489,127.56,127.5,38.53071603]
[1741603858207,18.64964886,127.57,127.53,38.53071603]
[1741603859508,26.48844886,127.57,127.53,38.53071603]
[1741603860208,81.1,127.58,127.53,46.37181603]
[1741603860406,81.1,127.58,127.54,38.53071603]
[1741603860614,88.9383,127.58,127.53,7.8411]
[1741603860806,18.64964886,127.57,127.53,38.53071603]
[1741603860995,57.18036489,127.57,127.52,46.37221603]
[1741603861314,46.37011603,127.56,127.47,19.6116]
[1741603861611,57.18036489,127.55,127.5,38.53071603]
[1741603861808,138.28036489,127.55,127.49,38.53071603]
[1741603863205,138.28036489,127.55,127.48,7.8443]
[1741603863206,138.28036489,127.55,127.51,7.8425]
[1741603863508,81.1,127.55,127.51,46.37321603]
[1741603863813,81.1,127.55,127.52,38.53071603]
[1741603863987,6.1082,127.56,127.52,38.53071603]
[1741603864191,18.64964886,127.58,127.53,38.53071603]
[1741603864386,18.64964886,127.58,127.54,38.53071603]
[1741603864590,18.64964886,127.58,127.53,38.53071603]
[1741603865107,87.6303,127.59,127.55,46.37071603]
[1741603865310,87.6303,127.59,127.55,38.53071603]
[1741603865691,87.6303,127.59,127.54,46.37111603]
[1741603866012,81.1,127.59,127.56,38.53071603]
[1741603866309,0.03,127.61,127.57,38.53071603]
[1741603866512,0.03,127.61,127.58,38.53071603]
[1741603867022,0.03,127.61,127.59,38.53071603]
[1741603867386,0.03,127.61,127.59,46.36821603]
[1741603868621,0.03,127.61,127.6,38.53071603]
[1741603869288,0.03,127.64,127.6,65.96001603]
[1741603869488,0.03,127.64,127.63,38.53071603]
[1741603870522,0.03,127.64,127.62,38.53071603]
[1741603870995,0.03,127.64,127.6,46.36761603]
[1741603871189,57.21036489,127.64,127.59,38.53071603]
[1741603871493,38.53071603,127.61,127.56,46.37011603]
[1741603871702,18.64964886,127.62,127.56,46.37011603]
[1741603871899,38.53071603,127.61,127.56,38.53071603]
[1741603872110,44.77651603,127.61,127.51,7.9807]
[1741603872318,44.77651603,127.61,127.56,38.53071603]
[1741603872614,38.53071603,127.59,127.53,38.53071603]
[1741603872793,38.53071603,127.59,127.54,38.53071603]
[1741603872994,18.64964886,127.6,127.55,38.53071603]
[1741603873320,26.48674886,127.6,127.55,46.37051603]
[1741603873623,87.3458,127.61,127.56,38.53071603]
[1741603873822,95.1821,127.61,127.56,38.53071603]
[1741603874233,18.64964886,127.6,127.55,38.53071603]
[1741603874530,18.64964886,127.6,127.56,38.53071603]
[1741603875336,26.48664886,127.6,127.56,38.53071603]
[1741603875506,65.01736489,127.6,127.55,38.53071603]
[1741603875906,38.53071603,127.59,127.54,38.53071603]
[1741603876515,65.01736489,127.6,127.54,38.53071603]
[1741603876725,26.48664886,127.6,127.55,38.53071603]
[1741603877112,107.58664886,127.6,127.55,38.53071603]
[1741603877302,107.58664886,127.6,127.55,46.37061603]
[1741603877501,146.11736489,127.6,127.55,38.53071603]
[1741603877698,146.11736489,127.6,127.54,46.37111603]
[1741603877919,146.11736489,127.6,127.55,38.53071603]
[1741603878921,138.28036489,127.6,127.55,46.37071603]
[1741603879104,99.74964886,127.6,127.56,38.53071603]
[1741603879704,81.1,127.6,127.58,38.53071603]
[1741603880028,81.13,127.64,127.59,38.53071603]
[1741603880206,18.64964886,127.63,127.59,38.53071603]
[1741603880800,18.64964886,127.63,127.59,46.36781603]
[1741603881240,119.66071603,127.64,127.61,38.53071603]
[1741603881241,81.13,127.64,127.61,38.53071603]
[1741603881439,0.03,127.64,127.63,38.53071603]
[1741603882903,0.03,127.64,127.63,46.36581603]
[1741603884424,0.03,127.66,127.63,65.95361603]
[1741603884717,0.03,127.66,127.65,38.53071603]
[1741603885134,0.03,127.66,127.65,46.36461603]
[1741603885927,0.03,127.66,127.64,46.36521603]
[1741603886335,0.03,127.66,127.65,38.53071603]
[1741603887029,0.03,127.66,127.65,46.36461603]
[1741603888234,0.03,127.68,127.67,38.53071603]
[1741603889021,0.0001,127.68,127.67,103.82800406]
[1741603890043,0.03,127.75,127.71,20.0]
[1741603890343,0.03,127.75,127.72,38.53071603]
[1741603890526,0.31432314,127.75,127.7,38.53071603]
[1741603890717,38.53071603,127.73,127.67,7.8326]
[1741603890910,38.53071603,127.73,127.67,46.36331603]
[1741603891110,38.53071603,127.74,127.69,38.53071603]
[1741603891309,38.53071603,127.72,127.65,1.6268]
[1741603891519,44.79981603,127.71,127.66,38.53071603]
[1741603891715,119.63071603,127.7,127.64,38.53071603]
[1741603891920,38.53071603,127.69,127.63,7.8349]
[1741603892324,38.53071603,127.67,127.61,38.53071603]
[1741603892531,38.53071603,127.66,127.6,38.53071603]
[1741603892933,38.53071603,127.67,127.61,38.53071603]
[1741603893132,38.53071603,127.67,127.61,46.36661603]
[1741603893732,46.36341603,127.67,127.61,46.36661603]
[1741603894138,46.36341603,127.67,127.62,38.53071603]
[1741603894327,81.1,127.68,127.64,38.53071603]
[1741603894509,38.53071603,127.69,127.64,38.53071603]
[1741603894715,46.36211603,127.69,127.64,38.53071603]
[1741603894914,46.36211603,127.69,127.63,38.53071603]
[1741603895716,46.39211603,127.69,127.63,38.53071603]
[1741603896039,38.56071603,127.69,127.64,38.53071603]
[1741603896336,0.03,127.69,127.64,38.53071603]
[1741603896524,46.39221603,127.69,127.64,38.53071603]
[1741603897114,46.39221603,127.69,127.6,27.4293]
[1741603897115,0.03,127.69,127.68,38.53071603]
[1741603898926,0.03,127.69,127.65,331.5836]
[1741603899134,0.03,127.69,127.68,38.53071603]
[1741603899645,0.03,127.69,127.68,46.36271603]
[1741603899842,0.03,127.69,127.66,46.36401603]
[1741603900048,126.19761603,127.74,127.68,38.53071603]
[1741603900228,38.53071603,127.73,127.68,38.53071603]
[1741603900430,57.18036489,127.72,127.66,46.36401603]
[1741603900654,38.53071603,127.71,127.66,46.36401603]
[1741603901945,65.01016489,127.72,127.67,38.53071603]
[1741603902818,38.53071603,127.71,127.66,46.36401603]
[1741603903447,38.53071603,127.68,127.63,38.53071603]
[1741603903759,81.1,127.69,127.65,38.53071603]
[1741603904583,81.1,127.69,127.66,38.53071603]
[1741603904852,146.11016489,127.72,127.67,46.36331603]
[1741603905059,99.74964886,127.72,127.67,46.36331603]
[1741603905247,81.1,127.72,127.68,38.53071603]
[1741603906549,52.92631603,127.74,127.69,38.53071603]
[1741603906758,14.3956,127.74,127.69,38.53071603]
[1741603907053,6.5669,127.74,127.69,38.53071603]
[1741603907231,0.03,127.72,127.69,38.53071603]
[1741603908333,0.03,127.72,127.71,38.53071603]